Workbook

Sheet Лист1
A1: ЭЛЕКТРОННЫЙ КАТАЛОГ УЧЕБНИКОВ И УЧЕБНЫХ ПОСОБИЙ БИБЛИОТЕКИ ЗСОШ "Поручиковская ООШ"на 01.10. 2023г.
A2: Автор учебника | B2: Наименование учебника | C2: Части | D2: Издательство | E2: Класс | F2: Год издания | G2: Год поступления | H2: Количество Поступлений | I2: Выбыло | J2: Куда выбыло | K2: СОСТОИТ Федеральные | L2: СОСТОИТ Региональные | M2: Цена | N2: Сумма | O2: Сопроводительный документ | P2: Учебные пособия автор | Q2: Наименование пособия | R2: Издательство | S2: Класс | T2: Год издания | U2: Год поступления | V2: Количество | W2: Федеральные | X2: Региональные | Y2: цена | Z2: Сумма | AA2: Сопроводительный документ
A3: 1КЛАСС
A4: Моро М.И. и др. | B4: Математика | C4: В 2х ч. | D4: Просвещение | E4: 1 | F4: 2023 | G4: 2023 | H4: 3 | M4: 1246.3 | N4: =H4*M4 -> 3738.9 | O4: № накладной000042763 от 06.06.2023
A5: Канакина В. П., Горецкий В. Г. | B5: Русский язык | D5: Просвещение | E5: 1 | F5: 2023 | G5: 2023 | H5: 3 | M5: 673.75 | N5: 2021.25 | O5: № накладной000042763 от 06.06.2023
A6: Горецкий В. Г. | B6: Азбука | C6: В 2х ч. | D6: Просвещение | E6: 1 | F6: 2023 | G6: 2023 | H6: 3 | M6: 1090.1 | N6: 3270.3 | O6: № накладной000042763 от 06.06.2023
A7: Климанова Л.Ф., Горецкий В.Г. | B7: Литературное чтение в | C7: В 2х ч. | D7: Просвещение | E7: 1 | F7: 2023 | G7: 2023 | H7: 3 | M7: 893.2 | N7: 2679.6 | O7: № накладной000042763 от 06.06.2023
A8: Плешаков А.А. | B8: Окружающий мир | C8: В 2х ч. | D8: Просвещение | E8: 1 | F8: 2023 | G8: 2023 | H8: 3 | M8: 937.2 | N8: 2811.6 | O8: № накладной000042763 от 06.06.2023
A9: НеменскаяЛ.А. | B9: Изобразительное искусство | D9: Просвещение | E9: 1 | F9: 2023 | G9: 2023 | H9: 1 | M9: 621.5 | N9: 621.5 | O9: № накладной000042763 от 06.06.2023
A10: Критская Е.Д., | B10: Музыка | D10: Просвещение | E10: 1 | F10: 2023 | G10: 2023 | H10: 1 | M10: 661.65 | N10: 661.65 | O10: № накладной000042763 от 06.06.2023
A11: Матвеев А.П. | B11: Физическая культура | D11: Просвещение | E11: 1 | F11: 2023 | G11: 2023 | H11: 1 | M11: 546.7 | N11: 546.7 | O11: № накладной000042763 от 06.06.2023
A12: Лутцева Е.А. | B12: Технология | D12: Просвещение | E12: 1 | F12: 2023 | G12: 2023 | H12: 1 | M12: 659.45 | N12: 659.45 | O12: № накладной000042763 от 06.06.2023
A13: Сагдиева Р.К. | B13: Татарский язык | C13: В 2х ч. | D13: "Мегариф" | E13: 1 | F13: 2023 | G13: 2023 | H13: 1 | M13: 950 | N13: 950 | O13: разнорядка по накладной №169,2023
A14: Гарифуллина Ф.Ш. | B14: Эдэби уку | D14: "Мегариф" | E14: 1 | F14: 2024 | G14: 2023 | H14: 1 | M14: 370 | N14: 370 | O14: разнорядка по накладной №169,2023
A15: Бахтиев Р.Ф. | B15: Татарский язык (Сэлем!) | D15: "Хэтер" Казань | E15: 1 | F15: 2023 | G15: 2023 | H15: 3 | M15: 300 | N15: 900 | O15: разнорядка по накладной №128,2023
N17: =SUM(N4:N16) -> 19230.95
A18: 2КЛАСС
A19: Моро М.И.и др. | B19: Математика | C19: В 2х ч. | D19: Просвещение | E19: 2 | F19: 2020 | G19: 2020 | H19: 8 | M19: 744.92 | N19: =H19*M19 -> 5959.36 | O19: Накладная №00009197 от 01.05.2020 | P19: М.М.Гибатдинов, Л.Р. Муртазина | Q19: Наследие Татарстана | R19: Татарское книжное издательство | S19: 2 | T19: 2016 | U19: 2016 | V19: 8 | X19: 8 | Y19: 222.9 | Z19: =X19*Y19 -> 1783.2 | AA19: Накладная 238 от 12.12.2016
A20: Канакина В. П., Горецкий В. Г. | B20: Русский язык | C20: В 2х ч. | D20: Просвещение | E20: 2 | F20: 2020 | G20: 2020 | H20: 8 | M20: 765.6 | N20: 6124.8 | O20: Накладная №00014575 от 25.05.2020
A21: Климанова Л.Ф., Горецкий В.Г. | B21: Литературное чтение | C21: В 2х ч. | D21: Просвещение | E21: 2 | F21: 2020 | G21: 2020 | H21: 8 | M21: 787.6 | N21: 6300.8 | O21: Накладная №00014575 от 25.05.2020г.
A22: БыковаН.И. | B22: Английский язык | D22: Просвещение | E22: 2 | F22: 2020 | G22: 2020 | H22: 3 | M22: 568.26 | N22: 1704.78 | O22: Накладная №00009197 от 01.05.2020
A23: Плешаков А.А. | B23: Окружающий мир | C23: В 2х ч. | D23: Просвещение | E23: 2 | F23: 2020 | G23: 2020 | H23: 8 | M23: 730.4 | N23: 5843.2 | O23: Накладная №00009197 от 01.05.2020 | P23: Исхакова Р.М., Ахметзянова Г.М. и др. | Q23: В мире детства. Хрестоматия для русскоязычных учащихся | R23: Татарское книжное издательство | S23: 2 | T23: 2013 | U23: 2013 | V23: 10 | X23: 10 | Y23: 119.2 | Z23: =X23*Y23 -> 1192 | AA23: Накладная №143/664 от19.08.2013
A24: Бим И.Л., Рыжова Л.И. | B24: Немецкий язык | D24: Просвещение | E24: 2 | F24: 2020 | G24: 2020 | H24: 8 | M24: 664.18 | N24: 5313.44 | O24: Накладная №00009197 от 01.05.2020
A25: Хайдарова Р.З. Н.Г. Галиева | B25: Татарский язык | D25: Мегариф | E25: 2 | F25: 2013 | G25: 2013 | H25: 10 | M25: 231 | N25: 2310 | O25: Накладная №53 от 25.06.2013
N26: =SUM(N19:N25) -> 33556.38
A27: 3КЛАСС
A28: Моро М.И. и др. | B28: Математика | C28: В 2х ч. | D28: Просвещение | E28: 3 | F28: 2013 | G28: 2013 | H28: 8 | O28: нет | P28: М.М.Гибатдинов, Л.Р. Муртазина | Q28: Наследие Татарстана | R28: Татарское книжное издательство | S28: 3 | T28: 2017 | U28: 2017 | V28: 4 | X28: 4 | Y28: 222.9 | Z28: 891.6 | AA28: Накладная № 218 от 23.05.2017
A29: Канакина В. П., Горецкий В. Г. | B29: Русский язык | C29: В 2х ч. | D29: Просвещение | E29: 3 | F29: 2013 | G29: 2013 | H29: 8 | O29: нет
A30: Канакина В. П., Горецкий В. Г. | B30: Русский язык | C30: В 2х ч. | D30: Просвещение | E30: 3 | F30: 2017 | G30: 2017 | H30: 1 | O30: нет | P30: Исхакова Р.М., Ахметзянова Г.М. и др. | Q30: Вместе с друзьями. Хрестоматия для русскоязычных учащихся | R30: Татарское книжное издательство | S30: 3 | T30: 2013 | U30: 2013 | V30: 7 | X30: 7 | Y30: 119.2 | Z30: 834.4 | AA30: Накладная №143/664 от19.08.2013
A31: Климанова Л.Ф., Горецкий В.Г. | B31: Литературное чтение | C31: В 2х ч. | D31: Просвещение | E31: 3 | F31: 2013 | G31: 2013 | H31: 10 | O31: нет
A32: Н.И.Быкова, и др. | B32: Английский язык | D32: Просвещение | E32: 3 | F32: 2016 | G32: 2016 | H32: 10 | M32: 580.8 | N32: =H32*M32 -> 5808 | O32: Накладная №4723 от 28.04.2016
A33: Плешаков А.А. | B33: Окружающий мир | C33: В 2х ч. | D33: Просвещение | E33: 3 | F33: 2013 | G33: 2013 | H33: 8 | O33: нет
A34: Бим И.Л., Рыжова Л.И. | B34: Немецкий язык | C34: В 2х ч. | D34: Просвещение | E34: 3 | F34: 2013 | G34: 2013 | H34: 8 | O34: нет
A35: Критская Е.Д., Сергеева Г.П. | B35: Музыка | D35: Просвещение | E35: 3 | F35: 2013 | G35: 2013 | H35: 8 | M35: 174.6 | N35: =H35*M35 -> 1396.8 | O35: нет
A36: Роговцева Н.И., Богданова Н.В. | B36: Технология | D36: Просвещение | E36: 3 | F36: 2013 | G36: 2013 | H36: 8 | M36: 201.78 | N36: =H36*M36 -> 1614.24 | O36: нет
A37: Хайдарова Р.З. Н.Г. Галиева | B37: Татарский яык (рус.под.) | D37: Мегариф | E37: 3 | F37: 2013 | G37: 2013 | H37: 8 | M37: 403 | N37: =H37*M37 -> 3224 | O37: Накладная № 53/62 от 25.06.2013
N38: =SUM(N28:N37) -> 12043.04
A39: 4КЛАСС
A40: Моро М.И., | B40: Математика | C40: В 2х ч. | D40: Просвещение | E40: 4 | F40: 2014 | G40: 2014 | H40: 8 | M40: 436.01 | N40: =M40*H40 -> 3488.08 | O40: Накладная №127/80746 от 05.07.2014 | P40: М.М.Гибатдинов, Л.Р. Муртазина | Q40: Наследие Татарстана | R40: Татарское книжное издательство | S40: 4 | T40: 2017 | U40: 2017 | V40: 5 | X40: 5 | Y40: 222.9 | Z40: 1114.5 | AA40: Накладная № 318 от 23.05.2017
A41: Канакина В. П., Горецкий В. Г. | B41: Русский язык | C41: В 2х ч. | D41: Просвещение | E41: 4 | F41: 2014 | G41: 2014 | H41: 8 | M41: 436.01 | N41: =H41*M41 -> 3488.08 | O41: Накладная №127/80746от 05.07.2014
A42: Климанова Л.Ф., Горецкий В.Г. | B42: Литературное чтение | C42: В 2х ч. | D42: Просвещение | E42: 4 | F42: 2014 | G42: 2014 | H42: 8 | M42: 436.01 | N42: =H42*M42 -> 3488.08 | O42: Накладная №127/80746от 05.07.2014
A43: Н.И.Быкова, Дж.Дули, М.Д.Поспелова, В.Эванс | B43: Английский язык | D43: Просвещение | E43: 4 | F43: 2017 | G43: 2017 | H43: 7 | M43: 480.04 | N43: =M43*H43 -> 3360.28 | O43: Накладная №90216 от 09.06.2017 | P43: Исхакова Р.М., Ахметзянова Г.М. и др. | Q43: Солнечная страна. Хрестоматия для русскоязычных учащихся | R43: Татарское книжное издательство | S43: 4 | T43: 2013 | U43: 2013 | V43: 10 | X43: 10 | Y43: 132.1 | Z43: 1321 | AA43: Накладная №664 от19.08.2013
A44: Плешаков А.А. | B44: Окружающий мир | C44: В 2х ч. | D44: Просвещение | E44: 4 | F44: 2014 | G44: 2014 | H44: 8 | M44: 436.01 | N44: =H44*M44 -> 3488.08 | O44: Накладная №127/80746от 05.07.2014
A45: Неменская Л.А./ под ред. Неменского Б.М. | B45: Изобразительное искусство | D45: Просвещение | E45: 4 | F45: 2014 | G45: 2014 | H45: 10 | M45: 242.22 | N45: =M45*H45 -> 2422.2 | O45: Накладная №127/80746от 05.07.2014
A46: Критская Е.Д., Сергеева Г.П. | B46: Музыка | D46: Просвещение | E46: 4 | F46: 2014 | G46: 2014 | H46: 8 | M46: 237.93 | N46: =M46*H46 -> 1903.44 | O46: Накладная №127/80746от 05.07.2014
A47: Роговцева Н.И., Богданова Н.В. | B47: Технология | D47: Просвещение | E47: 4 | F47: 2014 | G47: 2014 | H47: 8 | M47: 275.53 | N47: =M47*H47 -> 2204.24 | O47: Накладная №127/80746от 05.07.2014
A48: Хайдарова Р.З. Н.Г. Галиева | B48: Татарский яык (рус.под.) | D48: Татармультфильм | E48: 4 | F48: 2014 | G48: 2014 | H48: 8 | M48: 569.85 | N48: =M48*H48 -> 4558.8 | O48: Накладная №16 от 16.06.2014
A49: Бим И.Л., Рыжова Л.И. | B49: Немецкий язык | C49: В 2х ч. | D49: Просвещение | E49: 4 | F49: 2014 | G49: 2014 | H49: 8 | M49: 497.96 | N49: =H49*M49 -> 3983.68 | O49: Накладная №127/80746от 05.07.2014
A50: Шемшурина А.Й. | B50: Основы религиозных культур | D50: Просвещение | E50: 4 | F50: 2023 | G50: 2023 | H50: 1 | M50: 768.5 | N50: =H50*M50 -> 768.5 | O50: № накладной000042763 от 06.06.2023
N51: =SUM(N40:N50) -> 33153.46
A52: 5КЛАСС
A53: Ладыженская Т.А Баранов М.Т | B53: Русский язык | C53: В 2х ч. | D53: Просвещение | E53: 5 | F53: 2023 | G53: 2023 | H53: 6 | M53: 1105.5 | N53: =H53*M53 -> 6633 | O53: № накладной000042763 от 06.06.2023
A54: Коровина В.Я. | B54: Литература | C54: В 2х ч. | D54: Просвещение | E54: 5 | F54: 2023 | G54: 2023 | H54: 6 | M54: 1347.5 | N54: 8085 | O54: № накладной000042763 от 06.06.2023
A55: И.Л. Бим, Л.И. Рыжкова | B55: Немецкий язык | D55: Просвещение | E55: 5 | F55: 2023 | G55: 2023 | H55: 6 | M55: 1043.9 | N55: 6263.4 | O55: № накладной000042763 от 06.06.2023
A56: Виленкин Н.Я., | B56: Математика | C56: В 2х ч. | D56: Просвещение | E56: 5 | F56: 2023 | G56: 2023 | H56: 6 | M56: 1184.7 | N56: 7108.2 | O56: № накладной000042763 от 06.06.2023
A57: Вигасин А.А. | B57: История древнего мира | D57: Просвещение | E57: 5 | F57: 2023 | G57: 2023 | H57: 6 | M57: 822.25 | N57: 4933.5 | O57: № накладной000042763 от 06.06.2023
A58: Пасечник В. В., | B58: Биология | D58: Просвещение | E58: 5 | F58: 2023 | G58: 2023 | H58: 6 | M58: 789.25 | N58: 4735.5 | O58: № накладной000042763 от 06.06.2023
A59: Глозман Е.С | B59: Технология | D59: Просвещение | E59: 5 | F59: 2023 | G59: 2023 | H59: 3 | M59: 702.9 | N59: =M59*H59 -> 2108.7 | O59: № накладной000042763 от 06.06.2023
A60: Сергеева Г. П., Критская Е. Д. | B60: Музыка | D60: Просвещение | E60: 5 | F60: 2023 | G60: 2023 | H60: 3 | M60: 719.95 | N60: =M60*H60 -> 2159.85 | O60: № накладной000042763 от 06.06.2023
A61: Горяева Н. А., | B61: Изобразительное искусство | D61: Просвещение | E61: 5 | F61: 2023 | G61: 2023 | H61: 3 | M61: 774.95 | N61: =H61*M61 -> 2324.85 | O61: № накладной000042763 от 06.06.2023
A62: Матвеев А.П. | B62: Физическая культура | D62: Просвещение | E62: 5 | F62: 2023 | G62: 2023 | H62: 3 | M62: 512.6 | N62: =H62*M62 -> 1537.8 | O62: № накладной000042763 от 06.06.2023
A63: Студеникин М.Т. | B63: Основы светской этики | D63: Русское слово | E63: 5 | F63: 2023 | G63: 2023 | H63: 6 | M63: 682 | N63: =M63*H63 -> 4092 | O63: Акт прием-передачи№11519 2023
A64: Алексеев А.И., | B64: География | D64: Просвещение | E64: 5.6 | F64: 2023 | G64: 2023 | H64: 10 | M64: 891.55 | N64: =H64*M64 -> 8915.5 | O64: № накладной000042763 от 06.06.2023
N66: =SUM(N53:N65) -> 58897.3
A68: 6КЛАСС
A69: Ладыженская Т.А., Баринов М.Т. | B69: Русский язык | C69: В 2х ч. | D69: Просвещение | E69: 6 | F69: 2016 | G69: 2016 | H69: 9 | M69: 565.62 | N69: =H69*M69 -> 5090.58 | O69: Накладная № 4723 от 28.04.2016
A70: Полухина В.П., Коровина В.Я., Журавлев В.П. | B70: Литература | C70: В 2х ч. | D70: Просвещение | E70: 6 | F70: 2016 | G70: 2016 | H70: 9 | M70: 640.64 | N70: =H70*M70 -> 5765.76 | O70: Накладная № 4723 от 28.04.2016
A71: Хайдарова Р.З., Назипова З.Р. | B71: Татарский яык (рус.под.) | D71: Татармультфильм | E71: 6 | F71: 2014 | G71: 2014 | H71: 4 | M71: 247 | N71: =H71*M71 -> 988 | O71: Накладная №83 от 18.07.2014
A72: Мотигуллина А.Р., Гизатуллина Э.Х. | B72: Татарская литература | C72: В 2х ч. | D72: Магариф-Вакыт | E72: 6 | F72: 2017 | G72: 2017 | H72: 9 | M72: 654 | N72: =H72*M72 -> 5886 | O72: Накладная №83 от 18.07.2014
A73: Ваулина Ю.Е., Дули Д. | B73: Английский язык | D73: Просвещение | E73: 6 | F73: 2016 | G73: 2016 | H73: 9 | M73: 527.89 | N73: =H73*M73 -> 4751.01 | O73: Накладная № 236от 27.07.2017
A74: Бим И.Л., Рыжова Л.И. | B74: Немецкий язык в 2ч | C74: В 2х ч. | D74: Просвещение | E74: 6 | F74: 2016 | G74: 2016 | H74: 7 | M74: 621.6 | N74: =H74*M74 -> 4351.2 | O74: Накладная №4723 от 28.04.2016
A75: Никольский С.М. | B75: Математика | D75: Просвещение | E75: 6 | F75: 2016 | G75: 2016 | H75: 9 | M75: 403.59 | N75: =H75*M75 -> 3632.31 | O75: Накладная № 4723 от 28.04.2016
A76: Агибалов Е.В. | B76: История средних веков | D76: Просвещение | E76: 6 | F76: 2016 | G76: 2016 | H76: 9 | M76: 368.72 | N76: =H76*M76 -> 3318.48 | O76: Накладная № 4723 от 28.04.2016
A77: Андреев И.Л., Федоров И.Л. | B77: История России | D77: Дрофа | E77: 6 | F77: 2016 | G77: 2016 | H77: 9 | M77: 250 | N77: =H77*M77 -> 2250 | O77: Накладная № 822 от 30.04.2016
A78: под ред. Боголюбова Л.Н. | B78: Обществознание | D78: Просвещение | E78: 6 | F78: 2016 | G78: 2016 | H78: 9 | M78: 414.26 | N78: =H78*M78 -> 3728.34 | O78: Накладная № 4723 от 28.04.2016
A79: Герасимов Т.П., Неклюева Г.П. | B79: География | D79: Дрофа | E79: 6 | F79: 2016 | G79: 2016 | H79: 9 | M79: 300 | N79: =H79*M79 -> 2700 | O79: Накладная № 822 от 30.04.2016
A80: Сонин Н.И.,Плешаков А.А. | B80: Биология | D80: Дрофа | E80: 6 | F80: 2016 | G80: 2016 | H80: 9 | M80: 300 | N80: =H80*M80 -> 2700 | O80: Накладная № 822от 30.04.2016
A81: Синица Н.В., Самородский П.С., Симоненко В.Д. | B81: Технология | D81: Вентана Граф | E81: 6 | F81: 2016 | G81: 2016 | H81: 9 | M81: 240 | N81: =H81*M81 -> 2160 | O81: Накладная № 2168 от 23.05.2016
N83: =SUM(N69:N82) -> 47321.68
A84: 7КЛАСС
A85: Баринов М.Т., Ладыженская Т.А. | B85: Русский язык | D85: Просвещение | E85: 7 | F85: 2017 | G85: 2017 | H85: 7 | M85: 338.25 | N85: =H85*M85 -> 2367.75 | O85: Накладная №85073 от25.05.2017 | P85: Гилязов И.А., Пискарев В.И. | Q85: История Татарстана и татарского народа | R85: Тат.детское издательство | S85: 7 | T85: 2017 | U85: 2017 | V85: 7 | X85: 7 | Y85: 449 | Z85: =X85*Y85 -> 3143 | AA85: Накладная 718 от 29.08.2017
A86: Коровина В.Я., Журавлев В.П. | B86: Литература | C86: В 2х ч. | D86: Просвещение | E86: 7 | F86: 2017 | G86: 2017 | H86: 7 | M86: 599.94 | N86: =H86*M86 -> 4199.58 | O86: Накладная №85073 от25.05.2017
A87: Хайдарова Р.З. , Малафеева Р.Л. | B87: Татарский яык (рус.под.) | D87: Татармультфильм | E87: 7 | F87: 2014 | G87: 2014 | H87: 6 | M87: 195 | N87: =H87*M87 -> 1170 | O87: Накладная №83 от 18.07.2014
A88: Мотигуллина А.Р. | B88: Татарская литература | C88: В 2х ч. | D88: Магариф-Вакыт | E88: 7 | F88: 2017 | G88: 2017 | H88: 5 | M88: 660 | N88: =H88*M88 -> 3300 | O88: Накладная №236 от 27.07.2017
A89: Ваулина Ю.Е., Быкова Н.И., Дули Д. | B89: Английский язык | D89: Просвещение | E89: 7 | F89: 2017 | G89: 2017 | H89: 7 | M89: 449.35 | N89: =H89*M89 -> 3145.45 | O89: Накладная №85073 от25.05.2017
A90: Бим И.Л., Садомова Л.В. | B90: Немецкий | D90: Просвещение | E90: 7 | F90: 2017 | G90: 2017 | H90: 7 | M90: 491.48 | N90: =H90*M90 -> 3440.36 | O90: Накладная №85073 от25.05.2017
A91: Макарычев Ю.Н., Миньдюк | B91: Алгебра | D91: Просвещение | E91: 7 | F91: 2023 | G91: 2023 | H91: 6 | M91: 842.05 | N91: =H91*M91 -> 5052.3 | O91: Накладная №000042763 06.06.2023
A92: Атанасян Л.С., Бутзов В.Ф., Кадомцев С.Б. | B92: Геометрия 7-9кл | D92: Просвещение | E92: 7 | F92: 2017 | G92: 2017 | H92: 6 | M92: 384.01 | N92: =H92*M92 -> 2304.06 | O92: Накладная №85073 от25.05.2017
A93: Семакин И.Г., Залогова Л.А., Русаков С.В. | B93: Информатика и ИКТ | D93: Бином | E93: 7 | F93: 2017 | G93: 2017 | H93: 8 | M93: 268.36 | N93: 2415.24 | O93: Накладная №2517 от 08.06.2017
A94: Юдовская А.Я., Баранов П.А. , Ванюшкина Л.М. | B94: Всеобщая история . | D94: Просвещение | E94: 7 | F94: 2017 | G94: 2017 | H94: 6 | M94: 358.38 | N94: =H94*M94 -> 2150.28 | O94: Накладная №85073 от25.05.2017
A95: Боголюбов Л.Н., Городецкая Н.И., Иванова Л.Ф. | B95: Обществознание | D95: Просвещение | E95: 7 | F95: 2017 | G95: 2017 | H95: 9 | M95: 352.66 | N95: 3173.94 | O95: Накладная №90216 от 09.06.2017
A96: Коринская Р.А., Душина И.В., Щенев В.А. | B96: География | D96: Дрофа | E96: 7 | F96: 2017 | G96: 2017 | H96: 8 | M96: 311.82 | N96: =H96*M96 -> 2494.56 | O96: Накладная №7377 от 19.06.2017
A97: Перышкин А.В. | B97: Физика | D97: Просвещение | E97: 7 | F97: 2023 | G97: 2023 | H97: 6 | M97: 765.6 | N97: =M97*H97 -> 4593.6 | O97: Накладная №7377 от 19.06.2017
A98: Синица Н.В., Самородский П.С. | B98: Технология | D98: Вентана Граф | E98: 7 | F98: 2017 | G98: 2017 | H98: 9 | M98: 250.91 | N98: =M98*H98 -> 2258.19 | O98: Накладная №6173 от 19.06.2017
A99: Босова Л.Л | B99: Информатика и ИКТ | D99: Просвещение | E99: 7 | F99: 2023 | G99: 2023 | H99: 1 | M99: 990 | N99: =M99*H99 -> 990 | O99: Накладная №000042763 06.06.2023
A100: Высоцкий И.Р. | B100: Математика.Вероятность и статистика | C100: В 2х ч. | D100: Просвещение | E100: 7.9 | F100: 2023 | G100: 2023 | H100: 1 | M100: 886.6 | N100: =H100*M100 -> 886.6 | O100: Накладная №000042763 06.06.2023
N101: =SUM(N85:N100) -> 43941.91
A102: 8КЛАСС
A103: Тростенцова Л.А., Ладыженская Т.А. | B103: Русский язык | D103: Просвещение | E103: 8 | F103: 2018 | G103: 2018 | H103: 7 | M103: 394.9 | N103: =H103*M103 -> 2764.3 | O103: Накладная №23742 от 09.07.2018 | P103: Гилязов И.А., Пискарев В.И. | Q103: История Татарстана и татарского народа | R103: Тат.детское издательство | S103: 8 | T103: 2018 | U103: 2018 | V103: 7 | X103: 7 | Y103: 210.96 | Z103: 1476.72 | AA103: Накладная №И8-19/18 от 24.07.2018
A104: Коровина В.Я., Журавлев В.П. | B104: Литература | C104: В 2х ч. | D104: Просвещение | E104: 8 | F104: 2018 | G104: 2018 | H104: 7 | M104: 681.56 | N104: =H104*M104 -> 4770.92 | O104: Накладная №19380 от 22.06.2018
A105: Хайдарова Р.З. , Малафеева Р.Л. | B105: Татарский яык (рус.под.) | D105: Татармультфильм | E105: 8 | F105: 2015 | G105: 2015 | H105: 7 | M105: 450 | N105: =H105*M105 -> 3150 | O105: Накладная №61 от 15.06.2015
A106: Мотигуллина А.Р., Ханнанова Р.Г. | B106: Татарская литература | C106: В 2х ч. | D106: Магариф-Вакыт | E106: 8 | F106: 2015 | G106: 2015 | H106: 5 | M106: 790.7 | N106: =H106*M106 -> 3953.5 | O106: Накладная №21 от 29.06.2015
A107: Ваулина Ю.Е., Быкова Н.И., Дули Д. | B107: Английский язык | D107: Просвещение | E107: 8 | F107: 2018 | G107: 2018 | H107: 7 | M107: 510.51 | N107: =H107*M107 -> 3573.57 | O107: Накладная №19380 от 22.06.2018
A108: Никольский С.М., Потапов М | B108: Алгебра | D108: Просвещение | E108: 8 | F108: 2018 | G108: 2018 | H108: 7 | M108: 369.49 | N108: =H108*M108 -> 2586.43 | O108: Накладная №19380 от 22.06.2018
A109: Атанасян Л.С., Бутзов В.Ф. | B109: Геометрия 7-9кл | D109: Просвещение | E109: 8 | F109: 2018 | G109: 2018 | H109: 7 | M109: 432.3 | N109: =H109*M109 -> 3026.1 | O109: Накладная №23742 от 09.07.2018
A110: Бим И.Л. Садомова Л.В. | B110: Немецкий язык | D110: Просвещение | E110: 8 | F110: 2018 | G110: 2018 | H110: 7 | M110: 548.02 | N110: =H110*M110 -> 3836.14 | O110: Накладная №19380 от 22.06.2018
A111: Семакин И.Г., Залогова Л.А. | B111: Информатика и ИКТ | D111: Бином | E111: 8 | F111: 2018 | G111: 2018 | H111: 7 | M111: 357.54 | N111: =H111*M111 -> 2502.78 | O111: Накладная № 2905 от 09.07.2018
A112: Юдовская А.Я., Баранов П.А. | B112: Всеобщая история | D112: Просвещение | E112: 8 | F112: 2018 | G112: 2018 | H112: 7 | M112: 399.63 | N112: =H112*M112 -> 2797.41 | O112: Накладная №23742 от 09.07.2018
A113: Андреев И.Л., Федоров И.Л. | B113: История России | D113: Дрофа | E113: 8 | F113: 2018 | G113: 2018 | H113: 7 | M113: 281.82 | N113: =H113*M113 -> 1972.74 | O113: Накладная №9376 от 11.06.2018
A114: Боголюбов Л.Н., Городецкая Н.И., Иванова Л.Ф. | B114: Обществознание | D114: Просвещение | E114: 8 | F114: 2018 | G114: 2018 | H114: 7 | M114: 400.62 | N114: =H114*M114 -> 2804.34 | O114: Накладная №23742 от 09.07.2018
A115: Коринская Р.А., Душина И.В. | B115: География | D115: Дрофа | E115: 8 | F115: 2018 | G115: 2018 | H115: 6 | M115: 363.64 | N115: =H115*M115 -> 2181.84 | O115: Накладная №9376 от 11.06.2018
A116: Габриелян О.С. | B116: Химия | D116: Дрофа | E116: 8 | F116: 2018 | G116: 2018 | H116: 7 | M116: 350 | N116: =H116*M116 -> 2450 | O116: Накладная №9376 от 11.06.2018
A117: Перышкин А.В. | B117: Физика | D117: Дрофа | E117: 8 | F117: 2018 | G117: 2018 | H117: 7 | M117: 386.36 | N117: =H117*M117 -> 2704.52 | O117: Накладная №9376 от 11.06.2018
A118: Константинов В.М. и др. | B118: Биология | D118: Вентана Граф | E118: 8 | F118: 2018 | G118: 2018 | H118: 7 | M118: 350.91 | N118: =H118*M118 -> 2456.37 | O118: Накладная №9376от 11.06.2018
A119: Смирнов А.Т., Хренников Б.О. | B119: Основы безопасности жизнедеятельности | D119: Просвещение | E119: 8 | F119: 2018 | G119: 2018 | H119: 10 | M119: 442.2 | N119: =H119*M119 -> 4422 | O119: Накладная №19380 от 22.06.2018
N120: =SUM(N103:N119) -> 51952.96
A121: 9КЛАСС
A122: Бархударов С.Г., Крючков С.Е., Максимов Л.Ю. | B122: Русский язык | D122: Просвещение | E122: 9 | F122: 2019 | G122: 2019 | H122: 7 | M122: 385 | N122: =H122*M122 -> 2695 | O122: Накладная № 8708 от 24.05 2019 | P122: Султанбеков Б.Ф. | Q122: История Татарстана | S122: 9 | T122: 2019 | U122: 2019 | V122: 7 | X122: 7 | Y122: 210.96 | Z122: =X122*Y122 -> 1476.72 | AA122: Накладная № И9/19/19 от 30.05. 2019 г.
A123: Коровина В.Я., Журавлев В.П., Збарский И.С. И | B123: Литература | C123: В 2х ч. | D123: Просвещение | E123: 9 | F123: 2019 | G123: 2019 | H123: 7 | M123: 753.5 | N123: =H123*M123 -> 5274.5 | O123: Накладная № 8708 от 24.05 2019
A124: Котова О.А., Лискова Т.Е | B124: Обществознание | D124: Просвещение | E124: 9 | F124: 2019 | G124: 2019 | H124: 7 | M124: 242.55 | N124: =H124*M124 -> 1697.85 | O124: Накладная № 8708 от 24.05 2019
A125: Хайдарова Р.З., | B125: Татарский яык (рус.под.) | D125: Татармультфильм | E125: 9 | F125: 2016 | G125: 2016 | H125: 10 | M125: 495 | N125: =H125*M125 -> 4950 | O125: Накладная №27 от 13.05.2016
A126: Мотигуллина А.Р., Ханнанова Р.Г. | B126: Татарская литература | C126: В 2х ч. | D126: Магариф-Вакыт | E126: 9 | F126: 2016 | G126: 2016 | H126: 10 | M126: 740 | N126: =H126*M126 -> 7400 | O126: Накладная №32 от 11.04.2016
A127: Никольский С.М., Потапов М.К., Решетников Н.Н. | B127: Алгебра | D127: Просвещение | E127: 9 | F127: 2019 | G127: 2019 | H127: 7 | M127: 444.07 | N127: =H127*M127 -> 3108.49 | O127: Накладная № 8708 от 24.05 2019
A128: Атанасян Л.С., Бутузов В.Ф., Кадомцев С.Б. | B128: Геометрия | D128: Просвещение | E128: 9 | F128: 2019 | G128: 2019 | H128: 7 | M128: 468.71 | N128: =H128*M128 -> 3280.97 | O128: Накладная № 8708 от 24.05 2019
A129: Ваулина Ю.Е., Дули Д., Подоляко О.Е | B129: Английский язык | D129: Просвещение | E129: 9 | F129: 2019 | G129: 2019 | H129: 7 | M129: 564.3 | N129: =H129*M129 -> 3950.1 | O129: Накладная № 8708 от 24.05 2019
A130: Бим И.Л., Садомова Л.В. | B130: Немецкий язык | D130: Просвещение | E130: 9 | F130: 2019 | G130: 2019 | H130: 7 | M130: 605.77 | N130: =H130*M130 -> 4240.39 | O130: Накладная №8708 от 24.05.2019
A131: Семакин И.Г., Залогова Л.А., Русаков С.В., Шестакова Л.В. | B131: Информатика и ИКТ | D131: Бином | E131: 9 | F131: 2019 | G131: 2019 | H131: 7 | M131: 474.13 | N131: =H131*M131 -> 3318.91 | O131: Накладная №1370 от 10.06.2019
A132: Алексеев А.И., Николина В.В., Липкина Е.К. и др. | B132: География | D132: Просвещение | E132: 9 | F132: 2019 | G132: 2019 | H132: 7 | M132: 442.2 | N132: =H132*M132 -> 3095.4 | O132: Накладная № 8708 от 24.05 2019
A133: Габриелян О.С., Остроумов И.Г., Сладков С.А | B133: Химия | D133: Дрофа | E133: 9 | F133: 2019 | G133: 2019 | H133: 7 | M133: 379.61 | N133: =H133*M133 -> 2657.27 | O133: Накладная № 8708 от 24.05 2019
A134: Ляшенко Л.М., Волобуев О.В., Симонова Е.В. | B134: История России | D134: Дрофа | E134: 9 | F134: 2019 | G134: 2019 | H134: 7 | M134: 292.73 | N134: =H134*M134 -> 2049.11 | O134: Накладная № V004860 от 24.05. 2019
A135: Юдовская А.Я., Баранов П.А., Ванюшкина Л.М. и др./ Под ред. Искендерова А.А. | B135: Всеобщая история . Новейшая история | D135: Просвещение | E135: 9 | F135: 2019 | G135: 2019 | H135: 7 | M135: 441.76 | N135: =H135*M135 -> 3092.32 | O135: Накладная № 8708 от 24.05 2019
A136: Виноградова Н.Ф., Смирнов Д.В., Сидоренко Л.В., Таранин А.Б. | B136: Основы безопасности жизнедеятельности. | D136: Вентана Граф | E136: 9 | F136: 2019 | G136: 2019 | H136: 5 | M136: 345.45 | N136: =H136*M136 -> 1727.25 | O136: Накладная № 3182 от 17.06.2019
A137: Перышкин А.В., Гутник Е.М. | B137: Физика | D137: Дрофа | E137: 9 | F137: 2019 | G137: 2019 | H137: 7 | M137: 405.5 | N137: =H137*M137 -> 2838.5 | O137: Накладная № V004860 от 24.05. 2019
A138: Пасечник В.В., Каменский А.А., Швецов Г.Г. | B138: Биология | D138: Просвещение | E138: 9 | F138: 2019 | G138: 2019 | H138: 7 | M138: 421.96 | N138: =H138*M138 -> 2953.72 | O138: Накладная № 8708 от 24.05 2019
N139: =SUM(N122:N138) -> 58329.78
A141: 10 КЛАСС
A142: Итого | N142: =N17+N26+N38+N51+N66+N83+N101+N120+N139 -> 358427.46
A165: 11 КЛАСС
A175: ИТОГО: Учебников и Учебных пособий- ЭКЗ.
A176: УЧЕБНИКОВ-
A177: ФЕДЕРАЛЬНЫХ-
A178: РЕГИОНАЛЬНЫХ-
A179: УЧЕБНЫЕ ПОСОБИЯ-
A180: ФЕДЕРАЛЬНЫЕ-
A181: РЕГИОНАЛЬНЫХ-
